Cogmind - Beta 13 @@@ ROGUE MODE // 2024.03.31 @ 20:02:40 Player: KoT Result: Destroyed by Y-45 Defender with Heavy Assault Rifle Performance ------------- Evolutions (1) 500 Regions Visited (2) 400 Robots Destroyed (20) 100 Value Destroyed (493) 493 Prototype IDs (2) 40 Alien Tech Used (0) 0 Bonus (0) 0 TOTAL SCORE: 1533 Bonus ------- None Cogmind --------- Core Integrity 0/400 Matter 181/300 Energy 100/100 System Corruption 0% Temperature Cool (9) Movement Core (1000) Ox19 Location -9/Materials Parts ------- > --- POWER (2) -------- (None) > --- PROPULSION (2) --- (None) > --- UTILITY (2) ------ Large Storage Unit High-capacity Storage Unit > --- WEAPON (3) ------- (None) > --- INVENTORY (20) --- Large Storage Unit High-capacity Battery (250) Terrain Scanner Peak State ------------ > --- POWER ------------ Light Ion Engine > --- PROPULSION ------- Aluminum Leg Aluminum Leg > --- UTILITY ---------- Large Storage Unit High-capacity Storage Unit > --- WEAPON ----------- Light Assault Rifle Light Cannon > --- INVENTORY -------- Large Storage Unit High-capacity Battery Terrain Scanner Medium Laser Grenade Launcher [Rating: 7] Favorites ----------- Power Light Ion Engine Engine Light Ion Engine Propulsion Aluminum Leg Leg Aluminum Leg Utility Large Storage Unit Storage Large Storage Unit Weapon Light Assault Rifle Energy Gun Medium Laser Ballistic Gun Light Assault Rifle Ballistic Cannon Light Cannon Launcher Grenade Launcher Build | -11 -10 -9 ------- Run | Yrd Mat Mat Slots Evolved 2 | . . 2 Power 1 | . . 1 Propulsion . | . . . Utility . | . . . Weapon 1 | . . 1 Parts Attached 15 | 6 7 2 Power 2 | 1 1 . Engine 2 | 1 1 . Core . | . . . Reactor . | . . . Propulsion 2 | 2 . . Treads . | . . . Leg 2 | 2 . . Wheel . | . . . Hover . | . . . Flight . | . . . Utility 3 | 1 2 . Device . | . . . Storage 3 | 1 2 . Processor . | . . . Hackware . | . . . Protection . | . . . Artifact . | . . . Weapon 8 | 2 4 2 Energy Gun 2 | 1 1 . Energy Cannon . | . . . Ballistic Gun 2 | 1 1 . Ballistic Cannon 2 | . 1 1 Launcher 2 | . 1 1 Special Weapon . | . . . Impact Weapon . | . . . Slashing Weapon . | . . . Piercing Weapon . | . . . Special Melee Weapon . | . . . Unidentified Prototypes . | . . . Parts Lost 10 | . 6 4 Power 2 | . 2 . Propulsion 2 | . 2 . Utility . | . . . Weapon 6 | . 2 4 Highest Loss Streak 3 | . 3 2 To Critical Strikes . | . . . Average Slot Usage (%) 67 | . 72 41 Engine 9 | . 11 . Leg 6 | . 7 . Storage 24 | . 24 22 Energy Gun 10 | . 12 5 Ballistic Gun 12 | . 13 5 Ballistic Cannon 2 | . 1 4 Launcher 1 | . . 4 Naked Turns . | . . . Heaviest Build 67 | 14 67 66 Greatest Support 20 | 20 20 3 Greatest Overweight (x) 21 | . 21 21 Average Overweight (x) 6 | . 5 20 Largest Inventory Capacity 20 | 8 20 20 Average Capacity 17 | 6 16 20 Most Carried 6 | 5 6 5 Average Carried 4 | 3 4 3 Final Capacity 20 | 8 20 20 Final Carried 5 | 2 5 3 Class Distribution -------------------- 100% | Mutant Dominant Class ---------------- Mutant | -10/Materials Mutant | -9/Materials Resources | -11 -10 -9 ----------- Run | Yrd Mat Mat Matter Collected 498 | 215 263 20 Remotely . | . . . Salvage Created 459 | . 373 86 Parts 30 | . 28 2 Haulers Intercepted . | . . . Recyclers Shooed 1 | . 1 . Parts Field Recycled . | . . . Retrieved Matter . | . . . Parts Self-Destructed . | . . . Prevented . | . . . Kills | -11 -10 -9 ------- Run | Yrd Mat Mat Combat Hostiles Destroyed 15 | . 12 3 Guns 11 | . 11 . Cannons 3 | . 1 2 AOE 1 | . . 1 Classes Destroyed 5 | . 4 1 Worker 1 | . . 1 Builder 1 | . 1 . Watcher 3 | . 3 . Swarmer 6 | . 6 . Grunt 9 | . 6 3 Best Kill Streak 6 | . 6 2 Combat Bots Only 6 | . 6 1 Max Kills in Single Turn 2 | . 2 1 Gunslinging 1 | . 1 . Exploded 1 | . . 1 Melee . | . . . Uniques/NPCs Destroyed . | . . . Combat | -11 -10 -9 -------- Run | Yrd Mat Mat Hostile Shots Fired 185 | . 105 80 Missed 47 | . 29 18 Damage Taken 1808 | . 996 812 Core 650 | . 246 404 Absorbed by Shields . | . . . Core Remaining (%) 50 | 100 1 . Volleys Fired 73 | . 59 14 Largest 2 | . 2 2 Hottest 70 | . 70 70 Shots Fired 134 | . 110 24 Gun 99 | . 95 4 Cannon 27 | . 15 12 Launcher 8 | . . 8 Special . | . . . Kinetic 85 | . 71 14 Thermal 26 | . 24 2 Explosive 8 | . . 8 Electromagnetic 15 | . 15 . Robot Hit Streak 8 | . 7 8 Robot Miss Streak 6 | . 6 3 Penetration Max . | . . . Secondary Targets 2 | . 2 . Max Gunslinging Chain 1 | . 1 . Shots Hit Robots 74 | . 60 14 Core Hits 30 | . 24 6 Critical Kills . | . . . Critical Parts Destroyed . | . . . Critical Strikes 2 | . 2 . Burn 1 | . 1 . Corrupt 1 | . 1 . Melee Attacks . | . . . Impact . | . . . Slashing . | . . . Piercing . | . . . Sneak Attacks . | . . . Combat Hostiles . | . . . Follow-up Attacks . | . . . Damage Inflicted 1391 | . 878 513 Guns 590 | . 569 21 Cannons 363 | . 183 180 Explosions 434 | . 122 312 Melee . | . . . Ramming 4 | . 4 . Kinetic 662 | . 473 189 Thermal 212 | . 200 12 Explosive 407 | . 95 312 Electromagnetic 106 | . 106 . Impact . | . . . Slashing . | . . . Piercing . | . . . Highest Corruption 1 | . 1 . Average Corruption 1 | . 1 . Corruption Purged . | . . . Corruption Blocked . | . . . Effects 14 | . 14 . Message Errors 2 | . 2 . Matter Fused 5 | . 5 . Heat Flow Errors 2 | . 2 . Energy Discharges 1 | . 1 . Data Loss (minor) 3 | . 3 . Misfires 1 | . 1 . Overload Shots . | . . . Overflow Damage 34 | . . 34 Projectiles . | . . . Explosions 34 | . . 34 Melee . | . . . Knockbacks 6 | . 4 2 Impact . | . . . Kinetic 6 | . 4 2 Secondary . | . . . Self-Inflicted Damage 174 | . 136 38 Shots 3 | . 2 1 Rammed 1 | . 1 . Targets Rammed 2 | . 2 . Kicked 1 | . 1 . Crushed . | . . . Highest Temperature 200 | . 200 14 Average Temperature 49 | . 50 9 Received Heat Transfer 756 | . 381 375 Siege Activations . | . . . Robots Corrupted . | . . . Combat Hostiles . | . . . Parts Fried . | . . . Impact Corruptions . | . . . Robots Melted . | . . . Combat Hostiles . | . . . Parts Melted 1 | . 1 . Heat Transferred 679 | . 642 37 Parts Sabotaged . | . . . Parts Stolen . | . . . Parts Stripped . | . . . Power Chain Reactions 1 | . 1 . Alert | -11 -10 -9 ------- Run | Yrd Mat Mat Peak Influence 315 | . 315 152 Initial . | . . . Average 76 | . 80 65 Maximum Alert Level 1 | . 1 . Low Security (%) 88 | 100 86 100 Level 1 11 | . 13 . Level 2 . | . . . Level 3 . | . . . Level 4 . | . . . Level 5 . | . . . High Security . | . . . Max Security . | . . . Squads Dispatched 4 | . 2 2 Investigation . | . . . Extermination . | . . . Reinforcement 4 | . 2 2 Assault . | . . . Garrison . | . . . Intercept . | . . . Searches Triggered . | . . . Construction Impeded 1 | . . 1 Haulers Reinforced . | . . . Active Scanning Responses . | . . . Cargo Convoy Interrupts . | . . . Stealth | -11 -10 -9 --------- Run | Yrd Mat Mat Distress Signals . | . . . Communications Jammed . | . . . Distress Signals . | . . . Times Spotted 26 | . 19 7 Peak Tracking Total 3 | . 3 3 Tactical Retreats . | . . . Traps | -11 -10 -9 ------- Run | Yrd Mat Mat Traps Triggered 2 | . 2 . Indirectly . | . . . Trap Hack Attempts . | . . . Triggered . | . . . Disarmed . | . . . Reprogrammed . | . . . Reused . | . . . Traps Extracted . | . . . Installed . | . . . Triggered . | . . . Machines | -11 -10 -9 ---------- Run | Yrd Mat Mat Machines Disabled 6 | . 5 1 Max in Single Turn 3 | . 3 1 Machines Repaired . | . . . Machines Dismantled . | . . . Machines Sabotaged . | . . . Overloaded Fab Kills . | . . . Hacking | -11 -10 -9 --------- Run | Yrd Mat Mat Machines Accessed 3 | . 3 . Terminals 2 | . 2 . Fabricators . | . . . Repair Stations . | . . . Recycling Units 1 | . 1 . Scanalyzers . | . . . Garrison Access . | . . . Total Hacks 4 | . 4 . Successful 4 | . 4 . Failed . | . . . Catastrophic . | . . . Database Lockouts . | . . . Manual . | . . . Terminals 3 | . 3 . Fabricators . | . . . Repair Stations . | . . . Recycling Units 1 | . 1 . Scanalyzers . | . . . Garrison Access . | . . . Terminal Hacks 3 | . 3 . Record 1 | . 1 . Prototype ID Bank 1 | . 1 . Locate Traps 1 | . 1 . Fabricator Hacks . | . . . Repair Station Hacks . | . . . Recycling Unit Hacks 1 | . 1 . Report Inventory 1 | . 1 . Scanalyzer . | . . . Garrison Access Hacks . | . . . Unauthorized Hacks . | . . . Terminals . | . . . Fabricators . | . . . Repair Stations . | . . . Recycling Units . | . . . Scanalyzers . | . . . Garrison Access . | . . . Data Cores Recovered . | . . . Used . | . . . Hacking Detections 1 | . 1 . Full Trace Events . | . . . Feedback Events . | . . . Feedback Blocked . | . . . Robot Schematics Acquired . | . . . Robots Built . | . . . Authchips . | . . . Time . | . . . Total Robot Build Rating . | . . . Part Schematics Acquired . | . . . Parts Built . | . . . Authchips . | . . . Time . | . . . Total Part Build Rating . | . . . Parts Repaired . | . . . Time . | . . . Parts Recycled . | . . . Recycled Matter . | . . . Retrieved Matter . | . . . Retrieved Components . | . . . Parts Scanalyzed . | . . . Part Schematics Acquired . | . . . Parts Damaged . | . . . Bothacking | -11 -10 -9 ------------ Run | Yrd Mat Mat Used RIF Installer . | . . . Robots Hacked . | . . . Non-combat . | . . . Combat . | . . . Robot Hacks Applied . | . . . Relay Couplers Released . | . . . Fabnet Peak Effective % . | . . . Robots Rewired . | . . . Allies Hacked . | . . . Hacks Repelled . | . . . Allies | -11 -10 -9 -------- Run | Yrd Mat Mat Total Allies . | . . . Largest Group . | . . . Highest-Rated Group . | . . . Highest-Rated Ally . | . . . Total Orders . | . . . Ally Attacks . | . . . Total Damage . | . . . Kills . | . . . Allies Corrupted . | . . . Allies Melted . | . . . Intel | -11 -10 -9 ------- Run | Yrd Mat Mat Robot Analysis Total . | . . . Derelict Logs Recovered . | . . . Drone Launches . | . . . Drone Recoveries . | . . . Exploration | -11 -10 -9 ------------- Run | Yrd Mat Mat Turns Passed 2356 | 47 1914 395 Spaces Moved 533 | 35 464 34 Core 167 | 12 121 34 Treads . | . . . Legs 366 | 23 343 . Wheels . | . . . Hover . | . . . Flight . | . . . Fastest Speed 50 | 50 120 1000 Average Speed 399 | 96 373 1060 Slowest Speed 1100 | 120 1100 1100 Overloaded Moves . | . . . Propulsion Burnouts . | . . . Robots Hopped . | . . . Cave-ins Triggered . | . . . Exploration Rate (%) 28 | 4 75 7 Regions Visited 2 Branch Regions . Pre-discovered Areas . | . . . Known Exits Taken . | . . . Unknown Exits Taken 2 | 1 1 . Scrap Searched . | . . . Spaces Dug . | . . . Terrain Destroyed 89 | . 51 38 Melee . | . . . Projectile . | . . . AOE 89 | . 51 38 Terrain Rammed . | . . . Walls Destroyed . | . . . Machines Disabled . | . . . Actions | -11 -10 -9 --------- Run | Yrd Mat Mat Total 638 | 48 540 50 Wait . | . . . Move 531 | 34 463 34 Hop . | . . . Pick Up 16 | 8 8 . Fast Attach . | . . . Attach 12 | 6 4 2 Detach . | . . . Swap 3 | . 3 . Drop 1 | . 1 . Fire 73 | . 59 14 Melee . | . . . Ram 1 | . 1 . Kick 1 | . 1 . Crush . | . . . Escape Stasis . | . . . Rewire . | . . . Trap . | . . . Miscellaneous . | . . . Route ------- -11/Scrapyard -10/Materials (discovered 3 exits: [*Mat x2] / [*Min]) -9/Materials History --------- Turn | Location | Event 11 | -11/Scrapyard | Discovered new exit (range 15) 48 | -11/Scrapyard | Entered Materials 215 | -10/Materials | Discovered new exit (range 10) 315 | -10/Materials | Build established: Mutant 340 | -10/Materials | Core integrity fell below 50% 351 | -10/Materials | Discovered new exit (range 15) 372 | -10/Materials | Lost 3 parts (1p2w) 1602 | -10/Materials | Core integrity fell below 20% 1857 | -10/Materials | Discovered new exit (range 10) 1962 | -10/Materials | Entered another Materials area 1962 | -9/Materials | Evolved 2 slots: Power x1, Weapon x1 2321 | -9/Materials | Core integrity fell below 50% 2352 | -9/Materials | Core integrity fell below 20% 2357 | -9/Materials | Destroyed by Y-45 Defender with Heavy Assault Rifle Last Messages --------------- 02293_ U-05 Engineer lays Concrete. 02295_ U-05 Engineer builds a Wall. 02299_ U-05 Engineer lays Concrete. 02303_ U-05 Engineer builds a Wall. 02304_ Grenade Launcher destroyed. 02304_ Destroyed Grenade Launcher. 02306_ U-05 Engineer builds a Wall. 02307_ G-34 Mercenary destroyed. 02307_ U-05 Engineer lays Concrete. 02309_ The unstable cave ceiling collapses. 02309_ U-05 Engineer builds a Wall. 02311_ Lgt. Cannon destroyed. 02311_ U-05 Engineer lays Concrete. 02316_ U-05 Engineer builds a Wall. 02318_ U-05 Engineer lays Concrete. 02323_ Critical hit (Burn: +37). 02324_ U-05 Engineer lays Concrete. 02336_ Critical hit (Burn: +37). 02339_ U-05 Engineer lays Concrete. 02350_ U-05 Engineer builds a Wall. Map ----- +----------------------------------------------------+ | | | | | | | | | | | ?????????????????????????????????????????????????? | | ?????????????????????????????????????????????????? | | ?????????????????????????????????????????????????? | | ?????????????????????????????????????????????????? | | ?????????????????????????????????????????????????? | | ?????????????????????????????????????????????????? | | ?????????????????????????????????????????????????? | | ?????????????????????????????????????????????????? | | ?????????????????????????????????????????????????? | | ?????????????????????????????????##??????????????? | | ???????????????????????????###### ##?????????????? | | ???????????????????????#### #?????????????? | | ?????????????########### # """ #?????????????? | | ??????######## # ###### """ #?????????????? | | ??????# u # %" !!!#?????????????? | | ??????# u " !![#?????????????? | | ??????# # " !![#?????????????? | | ??????######## #### Yg# #?????????????? | | ????????????####+## # # #?????????????? | | ????????????# # m # %[ #?????????????? | | ????????????# # # @#####+####?????????????? | | ????????????# """ ### ! ???????????????? | | ????????????# """ #?# ^ ??????????????? | | ????????????# """ #?# % ?????????????? | | ????????????# #?#######+######+????????????? | | ????????????# #???????? ?????????????????? | | ????????????# #????????? ?????????????????? | | ????????????# #????????????????????????????? | | ????????????# "T" #????????????????????????????? | | ????????????# """ #????????????????????????????? | | ????????????#########????????????????????????????? | | ?????????????????????????????????????????????????? | | ?????????????????????????????????????????????????? | | ?????????????????????????????????????????????????? | | ?????????????????????????????????????????????????? | | ?????????????????????????????????????????????????? | | ?????????????????????????????????????????????????? | | ?????????????????????????????????????????????????? | | ?????????????????????????????????????????????????? | | ?????????????????????????????????????????????????? | | ?????????????????????????????????????????????????? | | ?????????????????????????????????????????????????? | | ?????????????????????????????????????????????????? | | ?????????????????????????????????????????????????? | | ?????????????????????????????????????????????????? | +----------------------------------------------------+ Best States ------------- Heat Dissipation 28 Energy Generation 10 Energy Capacity 250 Matter Stores 300 Matter Capacity 300 Sight Range 16 Terrain Scan Density 10 Evasion (%) 55 Item Schematics ----------------- None Robot Schematics ------------------ None Fabricated ------------ Nothing Alien Tech Used ----------------- None Achievements -------------- None Challenges ------------ None Game ------ Seed ThermalCooledBattery Manual? 0 Play Time 00:11:16 Cumulative 2.6 hours Start 2024.03.31 @ 19:52:33 End 2024.03.31 @ 20:02:40 Sessions 1 Manual Loads 0 Difficulty Rogue Special Mode None Game No. 4 Rogue 4 Adventurer 0 Explorer 0 Win Type - Total 0 Types 0/0/0/0/0/0/0/0/0 Lore% 1 Gallery% 6 Achievement% 8 Wizard Run 0 Options --------- Layout 1 ASCII 0 Keyboard 0 Movement Mouse Keybinds 0 Fullscreen 1 Font 24/Smallcaps Map View 50x35 Zoom Use 0% Tactical HUD 1 Map Filters NONE Filters NONE Steam 0 RUN: dd69b346-2698-44f8-8a61-a29c14fe492c